[Event "HUN-ch U8-U18 2019"]
[Site "Balatonlelle"]
[Date "2019.06.26"]
[Round "7.3"]
[White "Nandin-Erdene, Davaademberel"]
[Black "Karacsonyi, Luca"]
[Result "0-1"]
[ECO "B33"]
[WhiteElo "1581"]
[BlackElo "1470"]
[Annotator "NA RC"]
[PlyCount "110"]
[EventDate "2019.06.21"]
[EventType "swiss"]
[EventCountry "HUN"]
[SourceTitle "playchess.com"]
[Source "ChessBase"]
[SourceQuality "1"]
[TimeControl "40/5400+30:1800+30"]

1. e4 {[%emt 0:00:02]} c5 {[%emt 0:00:08]} 2. Nf3 {[%emt 0:00:05]} Nc6 {[%emt 0:00:20]} 3. d4 {[%emt 0:00:10]} cxd4 {[%emt 0:00:06]} 4. Nxd4 {[%emt 0:00:08]} Nf6 {[%emt 0:00:12]} 5. Nc3 {[%emt 0:00:07]} e5 {[%emt 0:00:24]} 6. Ndb5 {[%emt 0:00:34]} d6 {[%emt 0:00:23]} 7. Bg5 {[%emt 0:00:07]} a6 {[%emt 0:00:18]} 8. Na3 {[%emt 0:00:06]} b5 {[%emt 0:00:15]} 9. Nd5 {[%emt 0:00:11]} Be7 {[%emt 0:00:08]} 10. Bxf6 {[%emt 0:00:09]} Bxf6 {[%emt 0:00:10]} 11. c4 {[%emt 0:00:13]} bxc4 {[%emt 0:05:35]} 12. Nxc4 {[%emt 0:01:52]} Nd4 {[%emt 0:09:07]} 13. Ndb6 {[%emt 0:10:36]} Rb8 {[%emt 0:00:59]} 14. Qa4+ Bd7 {[%emt 0:02:26]} 15. Nxd6+ {[%emt 0:11:01]} Ke7 {[%emt 0:01:35]} 16. Nxd7 {[%emt 0:01:50]} Qxd7 {[%emt 0:01:08]} 17. Nf5+ {[%emt 0:00:41]} Ke8 {[%emt 0:06:33]} 18. Qxd7+ {[%emt 0:01:08]} Kxd7 {[%emt 0:00:14]} 19. Rd1 {[%emt 0:09:57]} Rxb2 {[%emt 0:03:10]} 20. f4 {[%emt 0:09:07]} Ke8 {[%emt 0:01:50]} 21. Nxd4 {[%emt 0:05:35]} exd4 {[%emt 0:01:04]} 22. a4 {[%emt 0:05:46]} Bh4+ {[%emt 0:07:41]} 23. g3 {[%emt 0:00:20]} Rxh2 {[%emt 0:00:08]} 24. Rg1 {[%emt 0:03:40]} Bd8 {[%emt 0:01:34]} 25. Bxa6 {[%emt 0:19:04]} h5 {[%emt 0:04:02]} 26. Rxd4 {[%emt 0:09:27]} Bb6 {[%emt 0:00:21]} 27. Bb5+ {[%emt 0:03:58]} Kf8 {[%emt 0:00:56]} 28. Rd6 {[%emt 0:01:02]} Bxg1 {[%emt 0:02:02]} 29. Rd8+ {[%emt 0:00:05]} Ke7 {[%emt 0:00:14]} 30. Rxh8 {[%emt 0:00:05]} Bf2+ {[%emt 0:00:35]} 31. Kf1 {[%emt 0:01:28]} Bxg3 {[%emt 0:00:33]} 32. e5 {[%emt 0:00:37]} Ke6 {[%emt 0:02:19]} 33. Bc4+ {[%emt 0:01:06]} Kf5 {[%emt 0:00:59]} 34. Bxf7 {[%emt 0:00:22]} Bxf4 {[%emt 0:02:10]} 35. e6 {[%emt 0:02:04]} Bd6 {[%emt 0:01:04]} 36. Rd8 {[%emt 0:00:38]} Be7 {[%emt 0:01:27]} 37. Rd5+ {[%emt 0:01:19]} Kf6 {[%emt 0:00:34]} 38. a5 {[%emt 0:00:32]} h4 {[%emt 0:00:53]} 39. Kg1 {[%emt 0:01:18]} Ra2 {[%emt 0:01:04]} 40. Rh5 {[%emt 0:00:00]} Ra4 {[%emt 0:00:00]} 41. Kg2 {[%emt 0:01:14]} Ra3 {[%emt 0:04:24]} 42. Kf2 {[%emt 0:05:08]} Bd8 {[%emt 0:03:42]} 43. Rxh4 {[%emt 0:01:36]} Rxa5 {[%emt 0:00:31]} 44. Rg4 {[%emt 0:04:12]} Rg5 {[%emt 0:02:25]} 45. Rd4 {[%emt 0:00:18]} Bb6 {[%emt 0:00:19]} 46. Ke3 {[%emt 0:00:19]} Rg4 {[%emt 0:00:33]} 47. Kf3 {[%emt 0:02:10]} Rxd4 {[%emt 0:00:10]} 48. Kg3 {[%emt 0:00:17]} Re4 {[%emt 0:00:19]} 49. Kf3 {[%emt 0:00:49]} Rxe6 {[%emt 0:00:08]} 50. Bxe6 {[%emt 0:00:07]} Kxe6 {[%emt 0:00:05]} 51. Kg4 {[%emt 0:00:05]} Kf6 {[%emt 0:00:12]} 52. Kf4 {[%emt 0:00:08]} g5+ {[%emt 0:00:17]} 53. Kg4 {[%emt 0:00:06]} Kg6 {[%emt 0:00:06]} 54. Kg3 {[%emt 0:00:10]} Kf5 {[%emt 0:00:04]} 55. Kf3 {[%emt 0:00:05]} g4+ {[%emt 0:00:08]} 0-1

[Event "HUN-ch U8-U18 2019"]
[Site "Balatonlelle"]
[Date "2019.06.26"]
[Round "7.4"]
[White "Gabor, Maria"]
[Black "Szarvas, Nora"]
[Result "1-0"]
[ECO "B06"]
[WhiteElo "1308"]
[BlackElo "1258"]
[Annotator "NA RC"]
[PlyCount "121"]
[EventDate "2019.06.21"]
[EventType "swiss"]
[EventCountry "HUN"]
[SourceTitle "playchess.com"]
[Source "ChessBase"]
[SourceQuality "1"]
[TimeControl "40/5400+30:1800+30"]

1. e4 {[%emt 0:00:02]} g6 {[%emt 0:00:09]} 2. d4 {[%emt 0:00:12]} Bg7 {[%emt 0:00:10]} 3. Nc3 {[%emt 0:00:25]} c5 {[%emt 0:02:38]} 4. Be3 {[%emt 0:09:31]} Qb6 {[%emt 0:04:48]} 5. Nd5 {[%emt 0:05:00]} Qa5+ {[%emt 0:09:21]} 6. Bd2 {[%emt 0:18:46]} Qd8 {[%emt 0:02:30]} 7. Bf4 {[%emt 0:01:12]} d6 {[%emt 0:02:56]} 8. dxc5 {[%emt 0:01:24]} e6 {[%emt 0:11:17]} 9. Nc3 {[%emt 0:00:36]} Bxc3+ {[%emt 0:02:11]} 10. bxc3 {[%emt 0:00:20]} d5 {[%emt 0:06:03]} 11. exd5 {[%emt 0:01:24]} Qxd5 {[%emt 0:01:50]} 12. Qxd5 {[%emt 0:00:45]} exd5 {[%emt 0:00:10]} 13. O-O-O {[%emt 0:01:35]} Be6 {[%emt 0:03:31]} 14. Bb5+ {[%emt 0:03:36]} Nc6 {[%emt 0:00:29]} 15. Nf3 {[%emt 0:00:46]} O-O-O {[%emt 0:01:06]} 16. Rhe1 {[%emt 0:00:54]} Nge7 {[%emt 0:01:28]} 17. Bg5 {[%emt 0:00:55]} Rde8 {[%emt 0:01:18]} 18. Bf6 {[%emt 0:00:39]} Rhg8 {[%emt 0:01:52]} 19. Nd4 {[%emt 0:03:44]} Bd7 {[%emt 0:00:54]} 20. Bxc6 {[%emt 0:07:56]} Nxc6 {[%emt 0:00:22]} 21. Rxe8+ {[%emt 0:01:58]} Rxe8 {[%emt 0:00:24]} 22. Nb5 {[%emt 0:01:46]} Re2 {[%emt 0:01:35]} 23. Bh4 {[%emt 0:01:12]} Be6 {[%emt 0:01:20]} 24. Nd6+ {[%emt 0:01:56]} Kc7 {[%emt 0:00:39]} 25. Bg3 {[%emt 0:00:19]} Kd7 {[%emt 0:07:04]} 26. Nxb7 {[%emt 0:00:20]} Ke7 {[%emt 0:00:49]} 27. Nd6 {[%emt 0:04:01]} a6 {[%emt 0:01:16]} 28. Rd2 {[%emt 0:02:49]} Rxd2 {[%emt 0:00:37]} 29. Kxd2 {[%emt 0:00:06]} h5 {[%emt 0:00:45]} 30. h4 {[%emt 0:01:05]} f6 {[%emt 0:00:33]} 31. a3 {[%emt 0:06:17]} g5 {[%emt 0:00:44]} 32. Kd3 {[%emt 0:00:57]} Kd7 {[%emt 0:02:16]} 33. c4 {[%emt 0:00:57]} dxc4+ {[%emt 0:01:47]} 34. Nxc4 {[%emt 0:00:09]} Bxc4+ {[%emt 0:00:15]} 35. Kxc4 {[%emt 0:00:07]} Na5+ {[%emt 0:00:27]} 36. Kd5 {[%emt 0:01:38]} Nc6 {[%emt 0:00:44]} 37. hxg5 {[%emt 0:00:29]} fxg5 {[%emt 0:00:12]} 38. Be5 {[%emt 0:01:40]} Ne7+ {[%emt 0:01:22]} 39. Ke4 {[%emt 0:00:22]} g4 {[%emt 0:00:43]} 40. Bf6 {[%emt 0:00:00]} Ng6 {[%emt 0:00:00]} 41. Kf5 {[%emt 0:02:46]} Nf8 {[%emt 0:00:56]} 42. Bh4 {[%emt 0:02:56]} Kc6 {[%emt 0:00:39]} 43. Kg5 {[%emt 0:00:30]} Kxc5 {[%emt 0:00:20]} 44. Kxh5 {[%emt 0:00:11]} Ne6 {[%emt 0:00:31]} 45. Kxg4 {[%emt 0:01:22]} Kb5 {[%emt 0:00:12]} 46. f4 {[%emt 0:00:31]} Nxf4 {[%emt 0:00:25]} 47. Kxf4 {[%emt 0:00:07]} Ka4 {[%emt 0:00:05]} 48. g4 {[%emt 0:00:04]} Kxa3 {[%emt 0:00:16]} 49. g5 {[%emt 0:00:05]} Kb2 {[%emt 0:00:19]} 50. g6 {[%emt 0:00:04]} a5 {[%emt 0:00:09]} 51. g7 {[%emt 0:00:03]} a4 {[%emt 0:00:08]} 52. g8=Q {[%emt 0:00:05]} a3 {[%emt 0:00:07]} 53. Qb3+ {[%emt 0:00:14]} Kc1 {[%emt 0:00:24]} 54. Qxa3+ {[%emt 0:00:13]} Kd2 {[%emt 0:00:26]} 55. Qd3+ {[%emt 0:00:24]} Kc1 {[%emt 0:00:11]} 56. Bf6 {[%emt 0:00:48]} Kb1 {[%emt 0:00:42]} 57. c4+ {[%emt 0:00:16]} Kc1 {[%emt 0:00:11]} 58. Qc3+ {[%emt 0:00:41]} Kd1 {[%emt 0:00:15]} 59. Bd4 {[%emt 0:00:33]} Ke2 {[%emt 0:00:16]} 60. Qe3+ {[%emt 0:00:12]} Kf1 {[%emt 0:00:52]} 61. Qf2# {[%emt 0:00:06]} 1-0

[Event "HUN-ch U8-U18 2019"]
[Site "Balatonlelle"]
[Date "2019.06.26"]
[Round "7.5"]
[White "Geher, Koppany"]
[Black "Tapodi, Norman Lajos"]
[Result "1/2-1/2"]
[ECO "B90"]
[WhiteElo "2089"]
[BlackElo "2043"]
[Annotator "NA RC"]
[PlyCount "91"]
[EventDate "2019.06.21"]
[EventType "swiss"]
[EventCountry "HUN"]
[SourceTitle "playchess.com"]
[Source "ChessBase"]
[SourceQuality "1"]
[TimeControl "40/5400+30:1800+30"]

1. e4 {[%emt 0:00:02]} c5 {[%emt 0:00:07]} 2. Nf3 {[%emt 0:00:07]} d6 {[%emt 0:00:17]} 3. d4 {[%emt 0:00:07]} cxd4 {[%emt 0:00:15]} 4. Nxd4 {[%emt 0:00:06]} Nf6 {[%emt 0:00:18]} 5. Nc3 {[%emt 0:00:08]} a6 {[%emt 0:00:29]} 6. h3 {[%emt 0:00:11]} e6 {[%emt 0:00:36]} 7. g4 {[%emt 0:00:54]} Nfd7 {[%emt 0:00:25]} 8. g5 {[%emt 0:03:23]} b5 {[%emt 0:04:02]} 9. Be3 {[%emt 0:08:30]} Bb7 {[%emt 0:02:12]} 10. f3 {[%emt 0:01:20]} Be7 {[%emt 0:01:14]} 11. h4 {[%emt 0:02:05]} Nc6 {[%emt 0:09:32]} 12. Nxc6 {[%emt 0:05:27]} Bxc6 {[%emt 0:00:23]} 13. Bd4 {[%emt 0:04:40]} O-O {[%emt 0:04:45]} 14. Qd2 {[%emt 0:07:01]} b4 {[%emt 0:16:43]} 15. Ne2 {[%emt 0:02:12]} a5 {[%emt 0:13:37]} 16. O-O-O {[%emt 0:05:51]} Ne5 {[%emt 0:08:47]} 17. Ng1 {[%emt 0:10:06]} Qc7 {[%emt 0:07:14]} 18. Kb1 {[%emt 0:00:56]} Rfc8 {[%emt 0:01:35]} 19. Rc1 {[%emt 0:05:20]} d5 {[%emt 0:04:32]} 20. f4 {[%emt 0:09:20]} Nc4 {[%emt 0:01:45]} 21. Qh2 {[%emt 0:01:57]} Bb7 {[%emt 0:05:52]} 22. g6 {[%emt 0:03:15]} fxg6 {[%emt 0:03:06]} 23. h5 {[%emt 0:01:02]} g5 {[%emt 0:00:57]} 24. Bh3 {[%emt 0:01:49]} Ra6 {[%emt 0:00:38]} 25. e5 {[%emt 0:06:00]} b3 {[%emt 0:04:05]} 26. axb3 {[%emt 0:01:53]} Bc5 {[%emt 0:01:19]} 27. Qf2 {[%emt 0:03:30]} Bxd4 {[%emt 0:02:50]} 28. Qxd4 {[%emt 0:00:02]} Qb6 {[%emt 0:00:12]} 29. Qxb6 {[%emt 0:01:58]} Nd2+ {[%emt 0:00:19]} 30. Ka2 {[%emt 0:00:13]} Rxb6 {[%emt 0:00:10]} 31. Ne2 {[%emt 0:05:53]} Ne4 {[%emt 0:03:38]} 32. Nd4 {[%emt 0:07:42]} Re8 {[%emt 0:00:26]} 33. fxg5 {[%emt 0:01:07]} Nxg5 {[%emt 0:00:15]} 34. Rcg1 {[%emt 0:00:55]} h6 {[%emt 0:00:18]} 35. c3 {[%emt 0:01:04]} Bc8 {[%emt 0:00:40]} 36. Rf1 {[%emt 0:01:16]} Rf8 {[%emt 0:01:04]} 37. Rxf8+ {[%emt 0:00:06]} Kxf8 {[%emt 0:00:06]} 38. Rf1+ {[%emt 0:00:53]} Ke7 {[%emt 0:00:07]} 39. Bg2 {[%emt 0:00:10]} Bd7 {[%emt 0:00:30]} 40. Ka3 {[%emt 0:00:00]} Be8 {[%emt 0:00:00]} 41. Rh1 {[%emt 0:01:36]} Rb8 {[%emt 0:06:28]} 42. Bf1 {[%emt 0:14:47]} Bd7 {[%emt 0:03:05]} 43. Bd3 {[%emt 0:01:24]} Rf8 {[%emt 0:01:51]} 44. Rf1 {[%emt 0:00:41]} Rxf1 {[%emt 0:06:47]} 45. Bxf1 {[%emt 0:00:02]} Be8 {[%emt 0:02:52]} 46. Be2 {[%emt 0:03:18]} 1/2-1/2

[Event "HUN-ch U8-U18 2019"]
[Site "Balatonlelle"]
[Date "2019.06.26"]
[Round "7.5"]
[White "Toth, Timea"]
[Black "Eros, Vivien"]
[Result "0-1"]
[ECO "B35"]
[WhiteElo "1964"]
[BlackElo "1317"]
[Annotator "NA RC"]
[PlyCount "144"]
[EventDate "2019.06.21"]
[EventType "swiss"]
[EventCountry "HUN"]
[SourceTitle "playchess.com"]
[Source "ChessBase"]
[SourceQuality "1"]
[TimeControl "40/5400+30:1800+30"]

1. e4 {[%emt 0:00:03]} c5 {[%emt 0:00:05]} 2. Nf3 {[%emt 0:00:17]} Nc6 3. d4 {[%emt 0:00:00]} cxd4 {[%emt 0:00:00]} 4. Nxd4 {[%emt 0:00:00]} g6 {[%emt 0:00:11]} 5. Nc3 {[%emt 0:00:05]} Bg7 {[%emt 0:00:16]} 6. Be3 {[%emt 0:00:08]} Nf6 {[%emt 0:00:26]} 7. Bc4 {[%emt 0:00:11]} Qa5 {[%emt 0:00:17]} 8. Nxc6 {[%emt 0:00:54]} bxc6 {[%emt 0:00:21]} 9. Qd3 {[%emt 0:03:34]} Rb8 {[%emt 0:04:32]} 10. Bb3 {[%emt 0:04:42]} O-O {[%emt 0:01:17]} 11. O-O {[%emt 0:16:31]} Ba6 {[%emt 0:00:49]} 12. Qd4 {[%emt 0:08:16]} Bxf1 {[%emt 0:04:49]} 13. Rxf1 {[%emt 0:00:10]} d6 {[%emt 0:28:38]} 14. Qxa7 {[%emt 0:17:40]} Qxa7 {[%emt 0:00:07]} 15. Bxa7 {[%emt 0:03:19]} Ra8 {[%emt 0:00:22]} 16. Be3 {[%emt 0:00:20]} Rfd8 {[%emt 0:12:59]} 17. f4 {[%emt 0:16:32]} Bh6 {[%emt 0:03:57]} 18. Ba4 {[%emt 0:09:59]} Rac8 {[%emt 0:02:09]} 19. Bb6 {[%emt 0:03:53]} Rf8 {[%emt 0:00:36]} 20. Bb3 {[%emt 0:01:42]} Rb8 {[%emt 0:04:02]} 21. Be3 {[%emt 0:04:37]} e5 {[%emt 0:00:24]} 22. g3 {[%emt 0:00:36]} exf4 {[%emt 0:02:32]} 23. Bxf4 {[%emt 0:00:05]} Bxf4 {[%emt 0:00:14]} 24. gxf4 {[%emt 0:00:04]} Rfe8 {[%emt 0:05:33]} 25. e5 {[%emt 0:01:47]} dxe5 {[%emt 0:00:42]} 26. fxe5 {[%emt 0:00:31]} Nd5 {[%emt 0:00:47]} 27. Nxd5 {[%emt 0:00:32]} cxd5 {[%emt 0:00:06]} 28. Bxd5 {[%emt 0:00:01]} Rf8 {[%emt 0:00:28]} 29. b3 {[%emt 0:01:51]} Rb5 {[%emt 0:01:08]} 30. c4 {[%emt 0:00:10]} Rbb8 {[%emt 0:01:48]} 31. c5 {[%emt 0:01:01]} Rb5 {[%emt 0:01:07]} 32. e6 {[%emt 0:02:12]} fxe6 {[%emt 0:01:10]} 33. Bxe6+ {[%emt 0:00:05]} Kg7 {[%emt 0:00:27]} 34. Rc1 {[%emt 0:00:27]} Rf6 {[%emt 0:05:04]} 35. Bd7 {[%emt 0:00:18]} Rb7 {[%emt 0:00:21]} 36. c6 {[%emt 0:00:07]} Rc7 {[%emt 0:00:21]} 37. b4 {[%emt 0:00:23]} Rf8 {[%emt 0:01:57]} 38. Re1 {[%emt 0:01:13]} Kf7 {[%emt 0:00:41]} 39. b5 {[%emt 0:00:00]} Rb8 {[%emt 0:00:00]} 40. Rb1 {[%emt 0:00:00]} Ke7 {[%emt 0:00:00]} 41. Bh3 {[%emt 0:05:03]} Kd6 {[%emt 0:04:29]} 42. a4 {[%emt 0:02:56]} Ra8 {[%emt 0:01:56]} 43. Ra1 {[%emt 0:02:50]} Kc5 {[%emt 0:02:29]} 44. Bg2 {[%emt 0:00:38]} Kb6 {[%emt 0:01:39]} 45. Be4 {[%emt 0:04:36]} Ra5 {[%emt 0:04:28]} 46. Kf2 {[%emt 0:05:00]} Rca7 {[%emt 0:00:21]} 47. Bc2 {[%emt 0:00:47]} Rxb5 {[%emt 0:02:08]} 48. Rc1 {[%emt 0:06:38]} Rc5 {[%emt 0:01:35]} 49. Rb1+ {[%emt 0:02:35]} Kxc6 {[%emt 0:00:40]} 50. Be4+ {[%emt 0:00:14]} Kc7 {[%emt 0:00:12]} 51. Ra1 {[%emt 0:03:50]} Rc4 {[%emt 0:00:28]} 52. Bd5 {[%emt 0:01:08]} Rcxa4 {[%emt 0:00:35]} 53. Rxa4 {[%emt 0:00:19]} Rxa4 {[%emt 0:00:06]} 54. Bg8 {[%emt 0:00:07]} h6 {[%emt 0:00:17]} 55. Bh7 {[%emt 0:00:09]} g5 {[%emt 0:00:10]} 56. Kg3 {[%emt 0:00:24]} Kd6 {[%emt 0:00:33]} 57. Bg6 {[%emt 0:01:19]} Ke5 {[%emt 0:01:13]} 58. Bh5 {[%emt 0:00:16]} Kf5 {[%emt 0:01:26]} 59. h3 {[%emt 0:01:10]} Ra3+ {[%emt 0:00:42]} 60. Kg2 {[%emt 0:02:30]} Kf4 {[%emt 0:02:32]} 61. Bg4 {[%emt 0:00:26]} Rg3+ {[%emt 0:00:35]} 62. Kf2 {[%emt 0:00:19]} Rxg4 {[%emt 0:00:21]} 63. hxg4 {[%emt 0:00:10]} Kxg4 {[%emt 0:00:09]} 64. Kg2 {[%emt 0:00:10]} h5 {[%emt 0:00:14]} 65. Kh2 {[%emt 0:00:07]} Kf3 {[%emt 0:00:17]} 66. Kh3 {[%emt 0:00:30]} g4+ {[%emt 0:00:18]} 67. Kh2 {[%emt 0:00:11]} Kf2 {[%emt 0:00:27]} 68. Kh1 {[%emt 0:00:07]} h4 {[%emt 0:00:03]} 69. Kh2 {[%emt 0:00:07]} g3+ {[%emt 0:00:13]} 70. Kh1 {[%emt 0:00:06]} g2+ {[%emt 0:00:04]} 71. Kh2 {[%emt 0:00:04]} g1=Q+ {[%emt 0:00:25]} 72. Kh3 {[%emt 0:00:03]} Qg3# {[%emt 0:00:16]} 0-1

[Event "HUN-ch U8-U18 2019"]
[Site "Balatonlelle"]
[Date "2019.06.26"]
[Round "7.7"]
[White "Szilagyi, Norbert"]
[Black "Dibusz, Domonkos"]
[Result "1/2-1/2"]
[ECO "C52"]
[WhiteElo "2093"]
[BlackElo "2067"]
[Annotator "NA RC"]
[PlyCount "81"]
[EventDate "2019.06.21"]
[EventType "swiss"]
[EventCountry "HUN"]
[SourceTitle "playchess.com"]
[Source "ChessBase"]
[SourceQuality "1"]
[TimeControl "40/5400+30:1800+30"]

1. e4 {[%emt 0:00:03]} e5 {[%emt 0:00:19]} 2. Nf3 {[%emt 0:00:07]} Nc6 {[%emt 0:00:45]} 3. Bc4 {[%emt 0:00:09]} Bc5 {[%emt 0:00:16]} 4. b4 {[%emt 0:00:05]} Bxb4 {[%emt 0:01:52]} 5. c3 {[%emt 0:00:06]} Ba5 {[%emt 0:02:40]} 6. d4 {[%emt 0:00:11]} d6 {[%emt 0:06:39]} 7. Qb3 {[%emt 0:04:00]} Qd7 {[%emt 0:07:50]} 8. dxe5 {[%emt 0:11:52]} Bb6 {[%emt 0:03:24]} 9. Qc2 {[%emt 0:25:12]} Nxe5 {[%emt 0:06:25]} 10. Nxe5 {[%emt 0:03:17]} dxe5 {[%emt 0:00:03]} 11. Qb3 {[%emt 0:01:49]} Nf6 {[%emt 0:04:48]} 12. Nd2 {[%emt 0:12:57]} O-O {[%emt 0:04:12]} 13. O-O {[%emt 0:00:42]} Qe7 {[%emt 0:01:38]} 14. Bb2 {[%emt 0:15:51]} Bd7 {[%emt 0:04:36]} 15. Rae1 {[%emt 0:00:52]} Bc6 {[%emt 0:01:32]} 16. Bd5 {[%emt 0:02:38]} Rad8 {[%emt 0:15:27]} 17. c4 {[%emt 0:11:42]} Nd7 {[%emt 0:02:01]} 18. Qg3 {[%emt 0:04:28]} Ba5 {[%emt 0:03:59]} 19. Re2 {[%emt 0:01:43]} Bxd2 {[%emt 0:06:47]} 20. Rxd2 Bxd5 {[%emt 0:01:06]} 21. exd5 {[%emt 0:00:41]} Rfe8 {[%emt 0:01:17]} 22. Rfd1 {[%emt 0:01:11]} Qc5 {[%emt 0:02:25]} 23. Rc1 {[%emt 0:01:12]} Qb4 {[%emt 0:02:57]} 24. Re2 {[%emt 0:00:20]} b5 {[%emt 0:02:26]} 25. c5 {[%emt 0:00:30]} Qf4 {[%emt 0:01:04]} 26. Qb3 {[%emt 0:00:39]} Nf6 {[%emt 0:01:21]} 27. Rd1 {[%emt 0:00:20]} Qc4 {[%emt 0:01:12]} 28. Qxc4 {[%emt 0:00:41]} bxc4 {[%emt 0:00:01]} 29. d6 {[%emt 0:00:36]} cxd6 {[%emt 0:01:19]} 30. cxd6 {[%emt 0:00:10]} Re6 {[%emt 0:02:22]} 31. Rxe5 {[%emt 0:00:26]} Rexd6 {[%emt 0:00:36]} 32. Rxd6 {[%emt 0:00:10]} Rxd6 {[%emt 0:00:04]} 33. Kf1 {[%emt 0:00:06]} h6 {[%emt 0:02:44]} 34. Ke2 {[%emt 0:00:24]} Rb6 {[%emt 0:01:18]} 35. Bc1 {[%emt 0:00:51]} Ra6 {[%emt 0:01:15]} 36. a3 {[%emt 0:00:05]} Nd7 {[%emt 0:03:33]} 37. Rd5 {[%emt 0:00:08]} Re6+ {[%emt 0:01:51]} 38. Kd2 {[%emt 0:00:54]} Nb6 {[%emt 0:00:14]} 39. Ra5 {[%emt 0:00:23]} c3+ {[%emt 0:00:48]} 40. Kd3 {[%emt 0:00:00]} Rd6+ {[%emt 0:00:00]} 41. Kc2 1/2-1/2

[Event "HUN-ch U8-U18 2019"]
[Site "Balatonlelle"]
[Date "2019.06.26"]
[Round "7.9"]
[White "Kratzmajer, Akos Gyorgy"]
[Black "Papp, Bence"]
[Result "0-1"]
[ECO "B01"]
[WhiteElo "2048"]
[BlackElo "2094"]
[Annotator "NA RC"]
[PlyCount "80"]
[EventDate "2019.06.21"]
[EventType "swiss"]
[EventCountry "HUN"]
[SourceTitle "playchess.com"]
[Source "ChessBase"]
[SourceQuality "1"]
[TimeControl "40/5400+30:1800+30"]

1. e4 {[%emt 0:00:14]} d5 {[%emt 0:00:05]} 2. exd5 {[%emt 0:00:06]} Qxd5 {[%emt 0:00:04]} 3. Nc3 {[%emt 0:00:07]} Qd6 {[%emt 0:00:04]} 4. d4 {[%emt 0:00:12]} Nf6 {[%emt 0:00:03]} 5. Nf3 {[%emt 0:00:05]} a6 {[%emt 0:00:05]} 6. Bd3 {[%emt 0:00:03]} Bg4 {[%emt 0:00:14]} 7. h3 {[%emt 0:00:05]} Bh5 {[%emt 0:03:02]} 8. O-O {[%emt 0:00:07]} c6 {[%emt 0:02:01]} 9. Ne4 {[%emt 0:07:13]} Nxe4 {[%emt 0:00:07]} 10. Bxe4 {[%emt 0:00:05]} Nd7 {[%emt 0:00:16]} 11. c3 {[%emt 0:02:15]} e6 {[%emt 0:00:16]} 12. Qb3 {[%emt 0:02:13]} Qc7 {[%emt 0:00:26]} 13. Re1 {[%emt 0:08:51]} Be7 {[%emt 0:00:37]} 14. Ne5 {[%emt 0:12:15]} Nxe5 {[%emt 0:02:54]} 15. dxe5 {[%emt 0:07:13]} O-O {[%emt 0:00:34]} 16. Qc2 {[%emt 0:05:04]} Bg6 {[%emt 0:00:25]} 17. Bxg6 {[%emt 0:00:07]} hxg6 {[%emt 0:00:12]} 18. Qe4 {[%emt 0:01:14]} Rfd8 {[%emt 0:03:06]} 19. Qg4 {[%emt 0:21:03]} Rd5 {[%emt 0:02:47]} 20. Bf4 {[%emt 0:00:42]} Qb6 {[%emt 0:05:29]} 21. b4 {[%emt 0:03:07]} c5 {[%emt 0:07:33]} 22. Rab1 {[%emt 0:03:31]} cxb4 {[%emt 0:01:06]} 23. cxb4 {[%emt 0:00:05]} Rc8 {[%emt 0:01:56]} 24. Be3 {[%emt 0:01:45]} Qb5 {[%emt 0:01:15]} 25. f4 {[%emt 0:02:55]} Rc4 {[%emt 0:02:37]} 26. Qe2 {[%emt 0:10:28]} Rxb4 {[%emt 0:13:17]} 27. Qxb5 {[%emt 0:01:12]} Rbxb5 {[%emt 0:08:53]} 28. Rxb5 {[%emt 0:00:54]} Rxb5 {[%emt 0:00:44]} 29. Rc1 {[%emt 0:00:07]} g5 {[%emt 0:00:19]} 30. Rc8+ {[%emt 0:03:48]} Kh7 {[%emt 0:00:18]} 31. Rc7 {[%emt 0:00:08]} gxf4 {[%emt 0:00:21]} 32. Bxf4 {[%emt 0:00:01]} Bc5+ {[%emt 0:00:16]} 33. Kh2 {[%emt 0:01:06]} Kg6 {[%emt 0:00:05]} 34. a4 {[%emt 0:00:13]} Bb6 {[%emt 0:02:18]} 35. Rd7 {[%emt 0:04:57]} Rb4 {[%emt 0:00:48]} 36. Bg3 {[%emt 0:01:34]} Bd4 {[%emt 0:02:46]} 37. h4 {[%emt 0:00:12]} f6 {[%emt 0:02:49]} 38. h5+ {[%emt 0:00:35]} Kxh5 {[%emt 0:01:36]} 39. Rxg7 {[%emt 0:00:18]} Bxe5 {[%emt 0:00:43]} 40. Bxe5 {[%emt 0:00:00]} fxe5 {[%emt 0:00:00]} 0-1